[Event "NED-ch U14 Youth 2019"]
[Site "Assen"]
[Date "2019.05.02"]
[Round "6.6"]
[White "Jakhari, Ansh"]
[Black "Dekker, Thiemen"]
[Result "1-0"]
[ECO "C47"]
[WhiteElo "1630"]
[BlackElo "1521"]
[Annotator "NA"]
[PlyCount "43"]
[EventDate "2019.04.28"]
[EventType "swiss"]
[EventCountry "NED"]
[SourceTitle "playchess.com"]
[Source "ChessBase"]
[SourceQuality "1"]
[TimeControl "5400+30"]

1. e4 {[%emt 0:00:00]} e5 {[%emt 0:00:00]} 2. Nf3 {[%emt 0:00:00]} Nc6 {[%emt 0:00:00]} 3. Nc3 {[%emt 0:00:00]} Nf6 {[%emt 0:00:17]} 4. d4 {[%emt 0:00:00]} exd4 {[%emt 0:00:42]} 5. Nxd4 {[%emt 0:00:05]} Bb4 {[%emt 0:02:46]} 6. Nxc6 {[%emt 0:00:08]} bxc6 {[%emt 0:00:12]} 7. Bd3 {[%emt 0:00:03]} Bxc3+ {[%emt 0:02:00]} 8. bxc3 {[%emt 0:00:06]} O-O {[%emt 0:02:30]} 9. O-O {[%emt 0:00:13]} h6 {[%emt 0:02:01]} 10. Ba3 {[%emt 0:00:26]} Re8 {[%emt 0:00:49]} 11. Re1 {[%emt 0:00:17]} d6 {[%emt 0:01:46]} 12. h3 {[%emt 0:02:52]} Bb7 {[%emt 0:08:26]} 13. Rb1 {[%emt 0:03:19]} Rb8 {[%emt 0:00:25]} 14. Qd2 {[%emt 0:02:08]} Qd7 {[%emt 0:04:01]} 15. Rb3 {[%emt 0:05:59]} Ba8 {[%emt 0:04:39]} 16. f4 {[%emt 0:02:29]} c5 {[%emt 0:04:53]} 17. e5 {[%emt 0:00:10]} Rxb3 {[%emt 0:01:08]} 18. cxb3 {[%emt 0:00:05]} dxe5 {[%emt 0:07:28]} 19. fxe5 {[%emt 0:00:09]} Rd8 {[%emt 0:01:20]} 20. exf6 {[%emt 0:00:22]} gxf6 {[%emt 0:09:43]} 21. Re3 {[%emt 0:00:58]} Qd6 {[%emt 0:02:43]} 22. Qf2 {[%emt 0:00:56]} 1-0

[Event "NED-ch U14 Youth 2019"]
[Site "Assen"]
[Date "2019.05.02"]
[Round "6.8"]
[White "Franke, Daniel"]
[Black "Kutchoukov, Daniel"]
[Result "0-1"]
[ECO "E46"]
[WhiteElo "1465"]
[BlackElo "1862"]
[Annotator "NA RC"]
[PlyCount "92"]
[EventDate "2019.04.28"]
[EventType "swiss"]
[EventCountry "NED"]
[SourceTitle "playchess.com"]
[Source "ChessBase"]
[SourceQuality "1"]
[TimeControl "5400+30"]

1. d4 {[%emt 0:00:00]} Nf6 {[%emt 0:23:10]} 2. c4 {[%emt 0:00:00]} e6 {[%emt 0:00:13]} 3. Nc3 {[%emt 0:00:00]} Bb4 {[%emt 0:00:04]} 4. Bd2 {[%emt 0:00:17]} d5 {[%emt 0:04:52]} 5. e3 {[%emt 0:01:36]} O-O {[%emt 0:01:39]} 6. Bd3 {[%emt 0:00:57]} dxc4 {[%emt 0:13:59] E46: Nimzo-Indian: Rubinstein: 4 e3 0-0 5 Ne2 without early Bd3} 7. Bxc4 {[%emt 0:01:05]} Nbd7 {[%emt 0:10:43]} 8. Nge2 {[%emt 0:01:17]} b6 {[%emt 0:03:20]} 9. a3 {[%emt 0:04:32]} Be7 $146 {[%emt 0:01:14]} ({Predecessor:} 9... Bd6 10. e4 e5 11. Bg5 Bb7 12. d5 h6 13. Bh4 a6 14. O-O {½-½ (22) Andersson,K (2092)-Wahlbom,M (2318) Condino 2009}) 10. O-O {[%emt 0:00:36]} Bb7 {[%emt 0:00:08]} 11. f3 {[%emt 0:00:07]} c5 {[%emt 0:06:12]} 12. dxc5 {[%emt 0:05:29]} Nxc5 {[%emt 0:02:47]} 13. b4 {[%emt 0:00:42]} Nd3 {[%emt 0:04:29]} 14. Qc2 {[%emt 0:04:25]} Ne5 {[%emt 0:04:33]} 15. Bb3 {[%emt 0:02:40]} Rc8 {[%emt 0:01:07]} 16. Rad1 {[%emt 0:07:05]} Ba6 {[%emt 0:03:00]} 17. Qb1 {[%emt 0:03:02]} Nc4 {[%emt 0:09:40]} 18. Qa2 {[%emt 0:02:28]} Qc7 {[%emt 0:03:23]} 19. b5 {[%emt 0:05:56]} Bb7 {[%emt 0:00:16]} 20. Bxc4 {[%emt 0:03:47]} Qxc4 {[%emt 0:00:07]} 21. Qxc4 {[%emt 0:00:05]} Rxc4 {[%emt 0:00:02]} 22. Bc1 {[%emt 0:00:59]} Rfc8 {[%emt 0:00:51]} 23. e4 {[%emt 0:06:05]} (23. Bb2 $15) 23... Rxc3 {[%emt 0:05:02]} 24. Nxc3 {[%emt 0:02:04]} Rxc3 {[%emt 0:00:01]} 25. Bb2 {[%emt 0:00:44]} Rc7 {[%emt 0:01:04]} 26. Rd3 {[%emt 0:01:57]} Kf8 {[%emt 0:00:19]} 27. Rfd1 {[%emt 0:00:33]} Ke8 {[%emt 0:00:12]} 28. Be5 {[%emt 0:01:05]} Rc8 {[%emt 0:00:37]} 29. Bxf6 {[%emt 0:04:08]} Bxf6 {[%emt 0:00:02]} 30. Rd7 {[%emt 0:00:33]} Rd8 {[%emt 0:00:02]} 31. Rxd8+ {[%emt 0:01:07]} Bxd8 {[%emt 0:00:01]} 32. Kf2 {[%emt 0:00:08]} Be7 {[%emt 0:00:23]} 33. Ke2 {[%emt 0:01:21]} e5 {[%emt 0:01:51]} 34. a4 $19 {[%emt 0:01:59]} Bc8 {[%emt 0:01:00]} 35. Rd3 {[%emt 0:02:07]} Be6 {[%emt 0:00:30]} 36. Kd1 {[%emt 0:02:18]} Bc5 {[%emt 0:00:22]} 37. Kc2 {[%emt 0:02:33]} Bd4 {[%emt 0:00:42]} 38. Ra3 {[%emt 0:02:37]} Bc4 {[%emt 0:00:07]} 39. g3 {[%emt 0:02:12]} Ke7 {[%emt 0:00:23]} 40. f4 {[%emt 0:01:51]} Kd6 {[%emt 0:00:53]} 41. f5 {[%emt 0:02:34]} h5 {[%emt 0:00:36]} 42. h3 {[%emt 0:01:00]} Kc5 {[%emt 0:00:29]} 43. g4 {[%emt 0:00:43]} h4 {[%emt 0:00:00]} 44. g5 {[%emt 0:00:45]} Kb4 {[%emt 0:00:08]} 45. Rf3 {[%emt 0:00:13]} Kxa4 {[%emt 0:00:38]} 46. f6 {[%emt 0:11:47]} g6 {[%emt 0:00:06]} 0-1

[Event "NED-ch U14 Youth 2019"]
[Site "Assen"]
[Date "2019.05.02"]
[Round "6.9"]
[White "Shadrin, Mitia"]
[Black "Boghossian, Wahe"]
[Result "1/2-1/2"]
[ECO "B53"]
[WhiteElo "1692"]
[BlackElo "1820"]
[Annotator "NA RC"]
[PlyCount "134"]
[EventDate "2019.04.28"]
[EventType "swiss"]
[EventCountry "NED"]
[SourceTitle "playchess.com"]
[Source "ChessBase"]
[SourceQuality "1"]
[TimeControl "5400+30"]

1. e4 {[%emt 0:00:00]} c5 {[%emt 0:00:00]} 2. Nf3 {[%emt 0:00:00]} d6 {[%emt 0:00:00]} 3. d4 {[%emt 0:00:00]} cxd4 {[%emt 0:00:00]} 4. Qxd4 {[%emt 0:00:00]} Nc6 {[%emt 0:02:35]} 5. Bb5 {[%emt 0:00:00]} Bd7 {[%emt 0:00:18]} 6. Bxc6 {[%emt 0:00:00]} bxc6 {[%emt 0:01:22]} 7. c4 {[%emt 0:00:04]} Qb6 {[%emt 0:22:24]} 8. Qd3 {[%emt 0:01:34]} Nf6 {[%emt 0:07:09] B53: Sicilian: 2...d6: Lines with Qxd4} (8... g6 9. Nc3 Bg7 10. O-O Nf6 11. b3 O-O 12. Bb2 Rad8 13. Rad1 Bg4 14. h3 Bxf3 15. Qxf3 Nd7 16. Na4 {1-0 (52) Zhigalko,S (2647)-Iljin,T (2422) Alushta 2010}) 9. Nc3 {[%emt 0:05:57]} e5 {[%emt 0:06:29]} 10. O-O {[%emt 0:03:28]} h6 {[%emt 0:02:24]} 11. b3 {[%emt 0:09:27]} Rd8 $146 {[%emt 0:03:43]} ({Predecessor:} 11... c5 12. Ne1 Be7 13. f4 exf4 14. Bxf4 O-O 15. Rd1 {1-0 (32) Ranaivoharisoa,A (2169)-Klaas,T (1663) Baku 2016}) 12. Na4 {[%emt 0:08:15]} Qc7 {[%emt 0:02:23]} 13. Bb2 {[%emt 0:04:17]} c5 {[%emt 0:07:05]} (13... Nh5 $11 {remains equal.}) 14. Nc3 {[%emt 0:04:12]} Be7 {[%emt 0:01:10]} 15. Ne1 {[%emt 0:09:12]} O-O {[%emt 0:08:23]} 16. Nc2 {[%emt 0:00:30]} Bc6 {[%emt 0:10:13]} 17. Ne3 {[%emt 0:01:03]} Kh8 {[%emt 0:02:39]} (17... Nh5 $16) 18. Nf5 {[%emt 0:02:31]} Qd7 {[%emt 0:01:25]} 19. Rfe1 {[%emt 0:02:39]} Bxe4 {[%emt 0:03:02] Remove Defender} 20. Nxe4 {[%emt 0:02:26]} Qxf5 {[%emt 0:00:23]} 21. Nxc5 {[%emt 0:01:02]} Qxd3 {[%emt 0:02:22]} 22. Nxd3 {[%emt 0:00:05]} Nh5 {[%emt 0:02:30]} 23. Nb4 {[%emt 0:01:08] Decoy} Bg5 {[%emt 0:00:53]} (23... Rc8 $16) 24. Nc6 {[%emt 0:01:09]} Rd7 $18 {[%emt 0:02:53]} 25. Rad1 {[%emt 0:01:05]} Nf6 {[%emt 0:01:46]} 26. g3 {[%emt 0:04:23]} h5 {[%emt 0:00:37]} 27. h4 {[%emt 0:00:13]} Bh6 {[%emt 0:00:06]} 28. Ba3 {[%emt 0:00:28]} Rc8 {[%emt 0:00:54]} 29. Nb4 {[%emt 0:00:23]} g6 {[%emt 0:04:09]} 30. Nd5 {[%emt 0:01:42]} Ne8 {[%emt 0:00:27]} 31. Nc3 {[%emt 0:01:22]} Rcd8 {[%emt 0:03:13]} 32. Ne4 {[%emt 0:01:24]} f6 {[%emt 0:01:51]} 33. Rd5 {[%emt 0:02:17]} Bf8 {[%emt 0:01:10]} 34. Red1 {[%emt 0:00:11]} Nc7 {[%emt 0:00:28]} 35. R5d3 {[%emt 0:00:31]} Ne8 {[%emt 0:00:29]} 36. Nc3 {[%emt 0:00:29]} Kg7 {[%emt 0:00:32]} 37. c5 {[%emt 0:00:42]} Rc8 {[%emt 0:00:30]} 38. Ne4 {[%emt 0:00:30]} f5 {[%emt 0:01:03]} 39. Nxd6 {[%emt 0:00:22]} Nxd6 {[%emt 0:00:00]} 40. cxd6 {[%emt 0:00:10]} Rcd8 {[%emt 0:01:00]} 41. Rd5 {[%emt 0:01:17]} Kf6 {[%emt 0:00:00]} 42. Ra5 {[%emt 0:00:07]} Ra8 {[%emt 0:00:24]} 43. Rdd5 {[%emt 0:00:51]} e4 {[%emt 0:00:21]} 44. Ra6 {[%emt 0:00:25]} Rad8 {[%emt 0:00:39]} 45. Rc6 {[%emt 0:00:49]} Ke6 {[%emt 0:00:30]} 46. Ra5 {[%emt 0:00:39]} Kf6 {[%emt 0:00:34]} 47. Raa6 {[%emt 0:01:15]} Ke6 {[%emt 0:00:26]} 48. Rc7 {[%emt 0:00:31]} Bxd6 {[%emt 0:00:30]} 49. Rxd7 {[%emt 0:00:12]} Rxd7 {[%emt 0:00:09]} 50. Bxd6 {[%emt 0:00:10]} Rxd6 {[%emt 0:00:07]} 51. Rxa7 {[%emt 0:00:05]} Rd1+ {[%emt 0:00:38]} 52. Kg2 {[%emt 0:00:06]} Rd2 {[%emt 0:00:44]} 53. Kf1 {[%emt 0:00:34]} Rb2 {[%emt 0:00:06]} 54. Ra4 {[%emt 0:00:21]} Kd5 {[%emt 0:00:27]} 55. Ra6 {[%emt 0:10:22]} Kd4 {[%emt 0:00:48]} 56. Rd6+ {[%emt 0:00:11]} Ke5 {[%emt 0:00:26]} 57. Rxg6 {[%emt 0:01:03]} Rxa2 {[%emt 0:00:02]} 58. Rg5 {[%emt 0:00:33]} Rb2 {[%emt 0:01:04]} 59. Rxh5 {[%emt 0:00:39]} Rxb3 {[%emt 0:00:21]} 60. g4 {[%emt 0:00:25]} Kf4 {[%emt 0:00:52]} 61. g5 {[%emt 0:01:35]} Kf3 {[%emt 0:01:22]} 62. Ke1 {[%emt 0:23:39]} Rb1+ 63. Kd2 Kxf2 {[%emt 0:01:00]} 64. g6 {[%emt 0:01:00]} e3+ 65. Kc2 {[%emt 0:00:30]} e2 {[%emt 0:01:00]} 66. Rxf5+ {[%emt 0:00:30]} Kg1 {[%emt 0:00:30]} 67. Rg5+ {[%emt 0:00:00]} Kh2 1/2-1/2

[Event "NED-ch U14 Youth 2019"]
[Site "Assen"]
[Date "2019.05.02"]
[Round "6.11"]
[White "Van Kuijk, Vadim"]
[Black "De Heij, Mees"]
[Result "0-1"]
[ECO "D02"]
[WhiteElo "1589"]
[BlackElo "1524"]
[Annotator "NA"]
[PlyCount "138"]
[EventDate "2019.04.28"]
[EventType "swiss"]
[EventCountry "NED"]
[SourceTitle "playchess.com"]
[Source "ChessBase"]
[SourceQuality "1"]
[TimeControl "5400+30"]

1. d4 {[%emt 0:00:00]} d5 {[%emt 0:00:00]} 2. Bf4 {[%emt 0:00:00]} Nf6 {[%emt 0:00:11]} 3. Nf3 {[%emt 0:00:01]} Nc6 {[%emt 0:01:08]} 4. e3 {[%emt 0:00:40]} e6 {[%emt 0:02:02]} 5. Nbd2 {[%emt 0:02:12]} Bd6 {[%emt 0:01:36]} 6. Bg3 {[%emt 0:00:57]} O-O {[%emt 0:00:48]} 7. c3 {[%emt 0:01:04]} Re8 {[%emt 0:01:25]} 8. Ne5 {[%emt 0:10:01]} Bd7 {[%emt 0:04:59]} 9. Bd3 {[%emt 0:02:16]} Ne7 {[%emt 0:17:37]} 10. h4 {[%emt 0:06:00]} h6 {[%emt 0:04:15]} 11. Bf4 {[%emt 0:03:31]} Bc6 {[%emt 0:08:16]} 12. g4 {[%emt 0:03:20]} Bxe5 {[%emt 0:03:07]} 13. Bxe5 {[%emt 0:19:21]} Ne4 {[%emt 0:05:21]} 14. g5 {[%emt 0:06:57]} hxg5 {[%emt 0:03:41]} 15. hxg5 {[%emt 0:05:02]} Ng6 {[%emt 0:05:02]} 16. Bxe4 {[%emt 0:06:04]} dxe4 {[%emt 0:00:19]} 17. Qh5 {[%emt 0:01:36]} Kf8 {[%emt 0:01:34]} 18. Nc4 {[%emt 0:07:28]} Qd5 {[%emt 0:12:08]} 19. Bxg7+ {[%emt 0:04:25]} Ke7 {[%emt 0:03:08]} 20. Ne5 {[%emt 0:10:51]} Nxe5 {[%emt 0:02:53]} 21. dxe5 {[%emt 0:02:59]} Bb5 {[%emt 0:05:11]} 22. Bf6+ {[%emt 0:04:37]} Kd7 {[%emt 0:00:08]} 23. Rd1 {[%emt 0:00:54]} Bd3 {[%emt 0:00:01]} 24. Rh4 {[%emt 0:01:01]} Kc6 {[%emt 0:00:58]} 25. f3 {[%emt 0:00:36]} Qxa2 {[%emt 0:06:07]} 26. fxe4 {[%emt 0:00:30]} Bc2 {[%emt 0:00:25]} 27. Rd2 {[%emt 0:00:31]} Qb1+ {[%emt 0:00:56]} 28. Ke2 {[%emt 0:00:20]} Bb3 {[%emt 0:02:17]} 29. Rh1 {[%emt 0:00:42]} Qxe4 {[%emt 0:00:43]} 30. Rh2 {[%emt 0:00:30]} Bc4+ {[%emt 0:00:52]} 31. Ke1 {[%emt 0:00:18]} Qxe3+ {[%emt 0:00:47]} 32. Kd1 {[%emt 0:00:25]} Bb3+ {[%emt 0:00:35]} 33. Kc1 {[%emt 0:00:16]} Qe1+ {[%emt 0:00:17]} 34. Rd1 {[%emt 0:00:08]} Qxd1+ {[%emt 0:01:14]} 35. Qxd1 {[%emt 0:00:13]} Bxd1 {[%emt 0:00:02]} 36. Kxd1 {[%emt 0:00:12]} Kd7 {[%emt 0:00:52]} 37. Rh7 {[%emt 0:00:15]} Rf8 {[%emt 0:00:23]} 38. g6 {[%emt 0:01:31]} Kc6 {[%emt 0:02:21]} 39. gxf7 {[%emt 0:01:12]} Kd5 {[%emt 0:02:46]} 40. Be7 {[%emt 0:00:31]} Kxe5 {[%emt 0:03:35]} 41. Rh5+ {[%emt 0:00:21]} Kf4 {[%emt 0:00:00]} 42. Rh4+ {[%emt 0:00:28]} Kf5 {[%emt 0:00:00]} 43. Bxf8 {[%emt 0:00:19]} Rxf8 {[%emt 0:00:00]} 44. Ra4 {[%emt 0:00:14]} a6 {[%emt 0:00:00]} 45. Rb4 {[%emt 0:00:07]} b6 {[%emt 0:00:00]} 46. Ra4 {[%emt 0:00:40]} a5 {[%emt 0:00:00]} 47. Ke2 {[%emt 0:00:12]} Rxf7 {[%emt 0:00:00]} 48. Ke3 {[%emt 0:00:20]} Rh7 {[%emt 0:00:41]} 49. Rf4+ {[%emt 0:00:14]} Ke5 {[%emt 0:00:17]} 50. Re4+ {[%emt 0:00:23]} Kd5 {[%emt 0:00:11]} 51. c4+ {[%emt 0:00:27]} Kd6 {[%emt 0:00:23]} 52. Kd4 {[%emt 0:00:17]} Rh3 {[%emt 0:01:07]} 53. Re2 {[%emt 0:00:13]} Rh4+ {[%emt 0:01:23]} 54. Kc3 {[%emt 0:00:24]} e5 {[%emt 0:00:52]} 55. Rd2+ {[%emt 0:00:38]} Ke6 {[%emt 0:00:26]} 56. Rf2 {[%emt 0:00:07]} Rh3+ {[%emt 0:00:10]} 57. Kc2 {[%emt 0:00:11]} e4 {[%emt 0:00:15]} 58. b3 {[%emt 0:00:09]} Rf3 {[%emt 0:00:39]} 59. Rd2 {[%emt 0:00:13]} e3 {[%emt 0:00:47]} 60. Re2 {[%emt 0:00:08]} Rf2 {[%emt 0:00:17]} 61. Kd3 {[%emt 0:00:06]} Rxe2 {[%emt 0:00:42]} 62. Kxe2 {[%emt 0:00:01]} Kd6 {[%emt 0:00:46]} 63. Kxe3 {[%emt 0:00:02]} Kc5 {[%emt 0:00:22]} 64. Kd3 {[%emt 0:00:13]} Kb4 {[%emt 0:00:18]} 65. Kc2 {[%emt 0:00:06]} Ka3 {[%emt 0:00:39]} 66. Kc3 {[%emt 0:07:00]} c5 {[%emt 0:00:17]} 67. Kc2 {[%emt 0:00:00]} Ka2 {[%emt 0:00:07]} 68. Kc3 {[%emt 0:00:00]} Kb1 {[%emt 0:00:20]} 69. b4 {[%emt 0:00:00]} axb4+ {[%emt 0:00:32]} 0-1

[Event "NED-ch U14 Youth 2019"]
[Site "Assen"]
[Date "2019.05.02"]
[Round "6.12"]
[White "Tiggelman, Vincent"]
[Black "Klaren, Duncan"]
[Result "0-1"]
[ECO "B30"]
[WhiteElo "1378"]
[BlackElo "1980"]
[Annotator "NA RC"]
[PlyCount "74"]
[EventDate "2019.04.28"]
[EventType "swiss"]
[EventCountry "NED"]
[SourceTitle "playchess.com"]
[Source "ChessBase"]
[SourceQuality "1"]
[TimeControl "5400+30"]

{[%evp 8,69,25,20,24,32767,32767,32767,87,39,41,17,22,25,35,22,38,44,43,33,89,0,-13,-26,-17,-16,-19,32767,32767,-45,32767,-33,-34,32767,32767,32767,32767,32767,-6,32767,32767,-16,-11,32767,32767,32767,-32,32767,32767,32767,-78,32767,-44,32767,-45,-78,-57,-106,-96,-147,-120,32767,32767,-145]} 1. e4 {[%emt 0:00:00]} c5 {[%emt 0:00:00]} 2. Nf3 {[%emt 0:00:00]} d6 {[%emt 0:00:00]} 3. Nc3 {[%emt 0:00:00]} e5 {[%emt 0:00:00]} 4. Bc4 {[%emt 0:01:25]} Be7 {[%emt 0:00:11]} 5. d3 {[%emt 0:00:34]} Nc6 {[%emt 0:00:05]} 6. h3 {[%emt 0:04:35]} Nf6 {[%emt 0:00:22]} 7. O-O {[%emt 0:05:54] B30: Sicilian: 2...Nc6 3 Bb5, lines without ...g6} Nd7 $146 {[%emt 0:01:18]} (7... a6 $11 {remains equal.}) ({Predecessor:} 7... O-O 8. Ne2 a6 9. a3 b5 10. Ba2 Be6 11. Bxe6 fxe6 12. Ng3 d5 13. Re1 d4 14. c3 Kh8 {0-1 (89) Aronian,L (2765)-Carlsen,M (2835) St Petersburg 2018}) 8. Nd5 {[%emt 0:05:44]} Nb6 {[%emt 0:00:15]} 9. Nxe7 {[%emt 0:02:22]} Qxe7 {[%emt 0:00:27]} 10. Bb3 {[%emt 0:00:48]} O-O {[%emt 0:00:27]} 11. Bg5 {[%emt 0:01:48]} Qc7 {[%emt 0:01:05]} 12. c3 {[%emt 0:01:54]} Kh8 {[%emt 0:01:25]} 13. Nh4 {[%emt 0:03:57]} Ne7 {[%emt 0:05:47]} 14. f4 {[%emt 0:02:14]} (14. a4 $16 a5 15. d4) 14... c4 {[%emt 0:06:31]} 15. dxc4 {[%emt 1:06:15]} f6 {[%emt 1:19:37]} 16. fxe5 {[%emt 0:00:00]} dxe5 {[%emt 0:00:00]} 17. c5 {[%emt 0:00:00]} Qxc5+ {[%emt 0:00:00]} 18. Kh1 {[%emt 0:00:00]} Bd7 {[%emt 0:00:00]} 19. Bd2 {[%emt 0:00:00]} Bb5 {[%emt 0:00:00]} 20. Re1 {[%emt 0:00:00]} Nc4 {[%emt 0:00:00]} 21. Bxc4 {[%emt 0:00:00]} Qxc4 {[%emt 0:00:00]} 22. b3 {[%emt 0:00:00]} Qc7 {[%emt 0:00:00]} 23. c4 {[%emt 0:00:00]} Bc6 {[%emt 0:00:00]} 24. Bb4 {[%emt 0:00:00]} Rfd8 {[%emt 0:00:00]} 25. Qh5 {[%emt 0:00:00]} Be8 {[%emt 0:00:00]} 26. Qg4 {[%emt 0:00:00]} Nc6 {[%emt 0:00:00]} 27. Ba3 {[%emt 0:00:00]} Nd4 {[%emt 0:00:00]} 28. Rec1 {[%emt 0:01:16]} Qf7 {[%emt 0:00:00]} 29. Nf5 {[%emt 0:03:24]} Bd7 {[%emt 0:00:00]} 30. Nd6 {[%emt 0:00:48]} Qg8 {[%emt 0:00:00]} 31. Qh4 {[%emt 0:00:36]} Bc6 {[%emt 0:00:00]} 32. Qh5 {[%emt 0:01:03]} Rd7 {[%emt 0:00:00]} 33. Rab1 {[%emt 0:00:57]} Qe6 {[%emt 0:00:00]} 34. Nf5 {[%emt 0:00:54]} Bxe4 {[%emt 0:00:00]} 35. Nxd4 $17 {[%emt 0:00:13]} Rxd4 {[%emt 0:00:00]} 36. Rb2 {[%emt 0:00:14]} Rad8 {[%emt 0:00:00]} 37. Bc5 {[%emt 0:00:44]} Rd3 {[%emt 0:11:00]} 0-1

[Event "NED-ch U14 Youth 2019"]
[Site "Assen"]
[Date "2019.05.02"]
[Round "6.13"]
[White "Van Foreest, Nanne"]
[Black "De Putter, Sven"]
[Result "1-0"]
[ECO "C54"]
[WhiteElo "1790"]
[BlackElo "1381"]
[Annotator "NA RC"]
[PlyCount "53"]
[EventDate "2019.04.28"]
[EventType "swiss"]
[EventCountry "NED"]
[SourceTitle "playchess.com"]
[Source "ChessBase"]
[SourceQuality "1"]
[TimeControl "5400+30"]

1. e4 {[%emt 0:00:00]} e5 {[%emt 0:00:00]} 2. Nf3 {[%emt 0:00:00]} Nc6 {[%emt 0:00:00]} 3. Bc4 {[%emt 0:00:00]} Bc5 {[%emt 0:00:00]} 4. c3 {[%emt 0:00:00]} Nf6 {[%emt 0:00:00]} 5. d4 {[%emt 0:00:00]} exd4 {[%emt 0:00:03]} 6. e5 {[%emt 0:00:00]} d5 {[%emt 0:00:21]} 7. Bb5 {[%emt 0:00:00]} Ne4 {[%emt 0:01:19]} 8. cxd4 {[%emt 0:00:04]} Bb4+ {[%emt 0:00:27]} 9. Nbd2 {[%emt 0:00:06]} O-O {[%emt 0:05:54]} 10. O-O {[%emt 0:00:32]} Bg4 {[%emt 0:01:19]} 11. Bxc6 {[%emt 0:02:13]} bxc6 {[%emt 0:00:55]} 12. Qc2 {[%emt 0:13:02]} Nxd2 {[%emt 0:02:19]} 13. Bxd2 {[%emt 0:00:37]} Bxd2 {[%emt 0:04:40]} 14. Nxd2 {[%emt 0:00:05]} Qd7 {[%emt 0:03:45]} 15. Rac1 {[%emt 0:01:47]} Rab8 {[%emt 0:05:12]} 16. Nb3 {[%emt 0:01:42]} Rb6 {[%emt 0:01:44]} 17. Nc5 {[%emt 0:06:05]} Qf5 {[%emt 0:02:53]} 18. b3 {[%emt 0:01:14]} Rb4 {[%emt 0:05:52]} 19. Qc3 {[%emt 0:01:46]} a5 {[%emt 0:04:42]} 20. a3 {[%emt 0:01:22]} Rb6 {[%emt 0:01:05]} 21. f3 {[%emt 0:00:28]} Bh5 {[%emt 0:03:10]} 22. g4 {[%emt 0:00:19]} Bxg4 {[%emt 0:02:51]} 23. fxg4 {[%emt 0:00:12]} Qxg4+ {[%emt 0:00:07]} 24. Kh1 {[%emt 0:00:34]} Rb5 {[%emt 0:03:14]} 25. Rg1 {[%emt 0:01:05]} Qe2 {[%emt 0:04:53]} 26. Rc2 {[%emt 0:01:06]} Qh5 {[%emt 0:01:52]} 27. Nd7 {[%emt 0:00:30]} 1-0

[Event "NED-ch U14 Youth 2019"]
[Site "Assen"]
[Date "2019.05.02"]
[Round "7.1"]
[White "Pham, Khoi"]
[Black "Bleeker, Kasper"]
[Result "1-0"]
[ECO "E01"]
[WhiteElo "2140"]
[BlackElo "1932"]
[Annotator "NA"]
[PlyCount "73"]
[EventDate "2019.04.28"]
[EventType "swiss"]
[EventCountry "NED"]
[SourceTitle "playchess.com"]
[Source "ChessBase"]
[SourceQuality "1"]
[TimeControl "5400+30"]

1. d4 {[%emt 0:00:00]} d5 {[%emt 0:05:08]} 2. c4 {[%emt 0:00:00]} c6 {[%emt 0:00:04]} 3. Nc3 {[%emt 0:00:00]} Nf6 {[%emt 0:00:01]} 4. Nf3 {[%emt 0:00:00]} e6 {[%emt 0:00:12]} 5. g3 {[%emt 0:00:02]} dxc4 {[%emt 0:00:15]} 6. Bg2 {[%emt 0:00:24]} Nbd7 {[%emt 0:00:13]} 7. e4 {[%emt 0:02:06]} b5 {[%emt 0:00:34]} 8. O-O {[%emt 0:00:36]} Bb7 {[%emt 0:00:15]} 9. e5 {[%emt 0:18:07]} Nd5 {[%emt 0:00:05]} 10. Ng5 {[%emt 0:07:22]} h6 {[%emt 0:00:30]} 11. Nxe6 {[%emt 0:03:10]} fxe6 {[%emt 0:00:07]} 12. Qh5+ {[%emt 0:00:02]} Ke7 {[%emt 0:00:01]} 13. Bg5+ {[%emt 0:00:36]} N7f6 {[%emt 0:01:42]} 14. exf6+ {[%emt 0:01:03]} gxf6 {[%emt 0:00:49]} 15. Bh4 {[%emt 0:02:26]} Qe8 {[%emt 0:04:58]} 16. Qe2 {[%emt 0:02:17]} Bg7 {[%emt 0:05:35]} 17. Ne4 {[%emt 0:01:39]} Rd8 {[%emt 0:06:44]} 18. Nc5 {[%emt 0:01:14]} Bc8 {[%emt 0:00:13]} 19. a4 {[%emt 0:01:45]} a6 {[%emt 0:04:35]} 20. axb5 {[%emt 0:02:13]} cxb5 {[%emt 0:00:18]} 21. Nxa6 {[%emt 0:02:16]} Bxa6 {[%emt 0:07:15]} 22. Rxa6 {[%emt 0:00:07]} Qd7 {[%emt 0:03:09]} 23. Re1 {[%emt 0:02:05]} Nc7 {[%emt 0:00:43]} 24. Ra7 {[%emt 0:00:40]} Rhe8 {[%emt 0:02:46]} 25. Qe5 {[%emt 0:09:45]} Rc8 {[%emt 0:01:18]} 26. Bb7 {[%emt 0:00:31]} Rcd8 {[%emt 0:06:00]} 27. Ba6 {[%emt 0:01:01]} Rc8 {[%emt 0:01:07]} 28. Bxc8 {[%emt 0:00:20]} Rxc8 {[%emt 0:00:05]} 29. d5 {[%emt 0:01:16]} Ke8 {[%emt 0:02:03]} 30. Bxf6 {[%emt 0:02:02]} Bxf6 {[%emt 0:00:19]} 31. Qxf6 {[%emt 0:00:11]} Qxd5 {[%emt 0:00:02]} 32. Rxc7 {[%emt 0:01:09]} Rxc7 {[%emt 0:00:02]} 33. Rxe6+ {[%emt 0:00:07]} Kd7 {[%emt 0:00:01]} 34. Qf7+ {[%emt 0:00:09]} Kc8 {[%emt 0:00:41]} 35. Re8+ {[%emt 0:00:07]} Qd8 {[%emt 0:00:42]} 36. Qe6+ {[%emt 0:00:36]} Rd7 {[%emt 0:00:04]} 37. Rxd8+ {[%emt 0:00:09]} 1-0